[Event "*** SCC Grand Prix: Titled Tuesday Blitz"]
[Site "Chess.com"]
[Date "2020.08.11"]
[Round "9"]
[White "ExtremeLearner"]
[Black "Eternauta2400"]
[Result "1-0"]
[WhiteElo "2372"]
[BlackElo "2489"]
[TimeControl "180+1"]
[EndTime "11:46:39 PDT"]
[Termination "ExtremeLearner won on time"]

1. d4 {[%clk 0:03:00.9]} 1... Nf6 {[%clk 0:02:58.7]} 2. Nf3 {[%clk 0:03:00.9]}
2... e6 {[%clk 0:02:58.4]} 3. g3 {[%clk 0:02:58.1]} 3... d5 {[%clk 0:02:57.2]}
4. Bg2 {[%clk 0:02:55.1]} 4... Be7 {[%clk 0:02:53.9]} 5. O-O {[%clk 0:02:50.2]}
5... O-O {[%clk 0:02:52.5]} 6. c4 {[%clk 0:02:47.4]} 6... Nbd7 {[%clk
0:02:50.5]} 7. Qc2 {[%clk 0:02:42.4]} 7... Ne4 {[%clk 0:02:50]} 8. Nc3 {[%clk
0:02:19.3]} 8... Nxc3 {[%clk 0:02:26.1]} 9. bxc3 {[%clk 0:02:19.2]} 9... c6
{[%clk 0:02:21.5]} 10. h4 {[%clk 0:02:14.3]} 10... f5 {[%clk 0:02:19.4]} 11.
cxd5 {[%clk 0:02:12.1]} 11... exd5 {[%clk 0:02:16.9]} 12. c4 {[%clk 0:02:11.4]}
12... Nf6 {[%clk 0:02:13.8]} 13. cxd5 {[%clk 0:01:51.9]} 13... cxd5 {[%clk
0:02:12.4]} 14. Bf4 {[%clk 0:01:51.2]} 14... Be6 {[%clk 0:02:05.2]} 15. Rab1
{[%clk 0:01:42.9]} 15... Rc8 {[%clk 0:02:03.4]} 16. Qa4 {[%clk 0:01:41.9]} 16...
Bd6 {[%clk 0:01:10.7]} 17. Bxd6 {[%clk 0:01:36.1]} 17... Qxd6 {[%clk 0:01:11.6]}
18. Rxb7 {[%clk 0:01:34.3]} 18... f4 {[%clk 0:01:09.6]} 19. Ne5 {[%clk
0:01:29.1]} 19... Ne4 {[%clk 0:01:04.2]} 20. Qxa7 {[%clk 0:01:27.9]} 20... Bf5
{[%clk 0:00:46.2]} 21. Rxg7+ {[%clk 0:01:17.8]} 21... Kh8 {[%clk 0:00:46.4]} 22.
g4 {[%clk 0:01:05]} 22... Qf6 {[%clk 0:00:34]} 23. Rf7 {[%clk 0:00:54.9]} 23...
Rxf7 {[%clk 0:00:26]} 24. Nxf7+ {[%clk 0:00:55.8]} 24... Kg8 {[%clk 0:00:26.3]}
25. gxf5 {[%clk 0:00:46.3]} 25... Qxf7 {[%clk 0:00:26]} 26. Qxf7+ {[%clk
0:00:42.9]} 26... Kxf7 {[%clk 0:00:26.9]} 27. Bxe4 {[%clk 0:00:42.5]} 27... dxe4
{[%clk 0:00:26.8]} 28. Rb1 {[%clk 0:00:34.5]} 28... Kf6 {[%clk 0:00:21.7]} 29.
a4 {[%clk 0:00:31.8]} 29... Rg8+ {[%clk 0:00:19.4]} 30. Kf1 {[%clk 0:00:30.8]}
30... Kxf5 {[%clk 0:00:18.9]} 31. Rb5+ {[%clk 0:00:29.1]} 31... Kf6 {[%clk
0:00:17.2]} 32. a5 {[%clk 0:00:28.7]} 32... Rd8 {[%clk 0:00:15.2]} 33. e3 {[%clk
0:00:28]} 33... Rc8 {[%clk 0:00:07.6]} 34. exf4 {[%clk 0:00:24.6]} 34... Rc4
{[%clk 0:00:07.2]} 35. a6 {[%clk 0:00:22.2]} 35... Rxd4 {[%clk 0:00:07.1]} 36.
Ke2 {[%clk 0:00:21.4]} 36... Ra4 {[%clk 0:00:05.5]} 37. Rb6+ {[%clk 0:00:19.8]}
37... Kf5 {[%clk 0:00:05.4]} 38. Ke3 {[%clk 0:00:18.8]} 38... Ra3+ {[%clk
0:00:04.5]} 39. Kd4 {[%clk 0:00:19.2]} 39... Kxf4 {[%clk 0:00:03.6]} 40. Rf6+
{[%clk 0:00:19.5]} 40... Kg4 {[%clk 0:00:03.5]} 41. Kxe4 {[%clk 0:00:19.4]}
41... Kxh4 {[%clk 0:00:04]} 42. f4 {[%clk 0:00:18.5]} 42... h6 {[%clk
0:00:03.7]} 43. Rxh6+ {[%clk 0:00:18.5]} 43... Kg4 {[%clk 0:00:03.9]} 44. Rd6
{[%clk 0:00:16.6]} 44... Ra4+ {[%clk 0:00:04.3]} 45. Ke5 {[%clk 0:00:16.4]}
45... Ra5+ {[%clk 0:00:03.7]} 46. Ke6 {[%clk 0:00:09]} 46... Kxf4 {[%clk
0:00:04.1]} 47. Kd7 {[%clk 0:00:09.5]} 47... Ke5 {[%clk 0:00:03.2]} 48. Rc6
{[%clk 0:00:09.5]} 48... Kd5 {[%clk 0:00:02.9]} 49. Kc7 {[%clk 0:00:10.1]} 49...
Rb5 {[%clk 0:00:03.4]} 50. Rb6 {[%clk 0:00:09.5]} 50... Ra5 {[%clk 0:00:04.3]}
51. Kb7 {[%clk 0:00:09.2]} 51... Kc5 {[%clk 0:00:04.2]} 52. a7 {[%clk
0:00:10.1]} 52... Ra4 {[%clk 0:00:02.7]} 53. Ra6 {[%clk 0:00:10.1]} 53... Rb4+
{[%clk 0:00:02.7]} 54. Kc8 {[%clk 0:00:10.4]} 1-0

[Event "*** SCC Grand Prix: Titled Tuesday Blitz"]
[Site "Chess.com"]
[Date "2020.08.11"]
[Round "9"]
[White "XDPS"]
[Black "MasterKroket"]
[Result "1-0"]
[WhiteElo "2636"]
[BlackElo "2411"]
[TimeControl "180+1"]
[EndTime "11:46:43 PDT"]
[Termination "XDPS won by resignation"]

1. d4 {[%clk 0:03:00.9]} 1... Nf6 {[%clk 0:02:58.6]} 2. Nf3 {[%clk 0:02:58.5]}
2... e6 {[%clk 0:02:58.8]} 3. Bf4 {[%clk 0:02:53.8]} 3... c5 {[%clk 0:02:58.2]}
4. e3 {[%clk 0:02:53.3]} 4... Nc6 {[%clk 0:02:57.7]} 5. c3 {[%clk 0:02:49]} 5...
Be7 {[%clk 0:02:55.6]} 6. Nbd2 {[%clk 0:02:48.7]} 6... O-O {[%clk 0:02:55.5]} 7.
Bd3 {[%clk 0:02:47.9]} 7... b6 {[%clk 0:02:48]} 8. a3 {[%clk 0:02:29.4]} 8...
Bb7 {[%clk 0:02:46.6]} 9. e4 {[%clk 0:02:11.9]} 9... cxd4 {[%clk 0:02:43.9]} 10.
cxd4 {[%clk 0:02:11.9]} 10... d6 {[%clk 0:02:41.9]} 11. O-O {[%clk 0:02:11.2]}
11... h6 {[%clk 0:02:38.3]} 12. Rc1 {[%clk 0:02:10.3]} 12... Rc8 {[%clk
0:02:30.3]} 13. Qa4 {[%clk 0:02:10.4]} 13... Qd7 {[%clk 0:01:55.4]} 14. h3
{[%clk 0:01:39.7]} 14... Na5 {[%clk 0:01:51.9]} 15. Bb5 {[%clk 0:01:23.6]} 15...
Bc6 {[%clk 0:01:49.2]} 16. Rxc6 {[%clk 0:01:16.7]} 16... Nxc6 {[%clk 0:01:44.2]}
17. Rc1 {[%clk 0:01:08.8]} 17... e5 {[%clk 0:01:42.2]} 18. dxe5 {[%clk
0:00:55.4]} 18... dxe5 {[%clk 0:01:41]} 19. Bxc6 {[%clk 0:00:41.2]} 19... Rxc6
{[%clk 0:01:32.9]} 20. Qxc6 {[%clk 0:00:42.1]} 20... Qxc6 {[%clk 0:01:23.9]} 21.
Rxc6 {[%clk 0:00:43]} 21... exf4 {[%clk 0:01:24.5]} 22. Rc7 {[%clk 0:00:41.2]}
22... Re8 {[%clk 0:01:18.6]} 23. Rxa7 {[%clk 0:00:39.3]} 23... Bf8 {[%clk
0:01:18.4]} 24. Rb7 {[%clk 0:00:36.1]} 24... Bc5 {[%clk 0:00:48.4]} 25. b4
{[%clk 0:00:32.2]} 25... Be3 {[%clk 0:00:48]} 26. fxe3 {[%clk 0:00:30]} 26...
fxe3 {[%clk 0:00:48.9]} 27. Nc4 {[%clk 0:00:17.2]} 27... Rxe4 {[%clk 0:00:49.3]}
28. Nd6 {[%clk 0:00:16.9]} 28... Re6 {[%clk 0:00:44]} 29. Rb8+ {[%clk
0:00:16.3]} 29... Kh7 {[%clk 0:00:43.2]} 30. Nxf7 {[%clk 0:00:17.2]} 30... e2
{[%clk 0:00:42.1]} 31. Kf2 {[%clk 0:00:17.1]} 31... Kg6 {[%clk 0:00:33.7]} 32.
N7e5+ {[%clk 0:00:16.9]} 32... Kf5 {[%clk 0:00:33.7]} 33. g4+ {[%clk 0:00:16.5]}
33... Kf4 {[%clk 0:00:33.7]} 34. Kxe2 {[%clk 0:00:14.9]} 34... Nd7 {[%clk
0:00:33.9]} 35. Rb7 {[%clk 0:00:09]} 35... Nxe5 {[%clk 0:00:33.4]} 36. Nxe5
{[%clk 0:00:09.9]} 36... Rxe5+ {[%clk 0:00:34.1]} 37. Kd2 {[%clk 0:00:10.4]}
37... Kg3 {[%clk 0:00:28.7]} 38. Rxb6 {[%clk 0:00:09.4]} 38... Kxh3 {[%clk
0:00:21.7]} 39. Rg6 {[%clk 0:00:09.8]} 39... Re4 {[%clk 0:00:15.8]} 40. Rxg7
{[%clk 0:00:08.7]} 40... Rxg4 {[%clk 0:00:15.8]} 41. Rh7 {[%clk 0:00:09]} 41...
Rg6 {[%clk 0:00:14.8]} 42. Kc3 {[%clk 0:00:09]} 42... Kg4 {[%clk 0:00:15.7]} 43.
b5 {[%clk 0:00:09.4]} 43... Kg5 {[%clk 0:00:16.4]} 44. Kb4 {[%clk 0:00:09.2]}
44... h5 {[%clk 0:00:17.1]} 45. a4 {[%clk 0:00:09.4]} 45... h4 {[%clk
0:00:17.5]} 46. a5 {[%clk 0:00:09.2]} 46... Kg4 {[%clk 0:00:13.6]} 47. a6 {[%clk
0:00:09.2]} 47... h3 {[%clk 0:00:13.4]} 48. a7 {[%clk 0:00:09.6]} 48... Rg8
{[%clk 0:00:13.7]} 49. b6 {[%clk 0:00:10.1]} 49... Kg3 {[%clk 0:00:14.3]} 50. b7
{[%clk 0:00:10.3]} 50... Rg4+ {[%clk 0:00:13.2]} 51. Kb5 {[%clk 0:00:10.2]}
51... Rg5+ {[%clk 0:00:13.6]} 52. Kc4 {[%clk 0:00:10.6]} 52... Rg4+ {[%clk
0:00:14.1]} 53. Kd5 {[%clk 0:00:11]} 53... Rg5+ {[%clk 0:00:14.5]} 54. Ke4
{[%clk 0:00:10.8]} 54... Rg4+ {[%clk 0:00:13.9]} 55. Ke5 {[%clk 0:00:11.2]}
55... h2 {[%clk 0:00:12.8]} 56. Rxh2 {[%clk 0:00:08.5]} 56... Kxh2 {[%clk
0:00:13]} 57. b8=Q {[%clk 0:00:09]} 57... Rg3 {[%clk 0:00:13.4]} 58. Ke4 {[%clk
0:00:09]} 58... Kh1 {[%clk 0:00:13.2]} 59. Qh8+ {[%clk 0:00:08.5]} 59... Kg2
{[%clk 0:00:13.1]} 60. Qb2+ {[%clk 0:00:08.1]} 60... Kh1 {[%clk 0:00:13.4]} 61.
Qc1+ {[%clk 0:00:07.8]} 61... Kh2 {[%clk 0:00:13.2]} 62. Qf4 {[%clk 0:00:07.2]}
62... Kh1 {[%clk 0:00:13.4]} 63. Qh4+ {[%clk 0:00:07.6]} 63... Kg2 {[%clk
0:00:13.3]} 64. Qxg3+ {[%clk 0:00:07.5]} 64... Kxg3 {[%clk 0:00:13.8]} 65. a8=Q
{[%clk 0:00:08.4]} 1-0

[Event "*** SCC Grand Prix: Titled Tuesday Blitz"]
[Site "Chess.com"]
[Date "2020.08.11"]
[Round "9"]
[White "Srisshhhtea"]
[Black "elcandado"]
[Result "1-0"]
[WhiteElo "2372"]
[BlackElo "2533"]
[TimeControl "180+1"]
[EndTime "11:46:45 PDT"]
[Termination "Srisshhhtea won on time"]

1. d4 {[%clk 0:03:00.9]} 1... Nf6 {[%clk 0:02:59.6]} 2. c4 {[%clk 0:03:00.6]}
2... e6 {[%clk 0:02:59.4]} 3. Nf3 {[%clk 0:02:59.4]} 3... d5 {[%clk 0:02:59.2]}
4. g3 {[%clk 0:02:58.6]} 4... dxc4 {[%clk 0:02:58.6]} 5. Bg2 {[%clk 0:02:56.5]}
5... Nc6 {[%clk 0:02:58.5]} 6. O-O {[%clk 0:02:53.6]} 6... Rb8 {[%clk
0:02:57.7]} 7. e3 {[%clk 0:02:50.2]} 7... b5 {[%clk 0:02:56.9]} 8. Qe2 {[%clk
0:02:49.3]} 8... a6 {[%clk 0:02:56.1]} 9. b3 {[%clk 0:02:48.2]} 9... cxb3 {[%clk
0:02:55.7]} 10. axb3 {[%clk 0:02:49.1]} 10... Be7 {[%clk 0:02:52.3]} 11. Bb2
{[%clk 0:02:46.7]} 11... O-O {[%clk 0:02:51.7]} 12. Nc3 {[%clk 0:02:44.9]} 12...
Bb7 {[%clk 0:02:44.1]} 13. Rfc1 {[%clk 0:02:41.3]} 13... Nb4 {[%clk 0:02:40.5]}
14. e4 {[%clk 0:02:35.9]} 14... c5 {[%clk 0:02:21.2]} 15. dxc5 {[%clk
0:02:33.7]} 15... Bxc5 {[%clk 0:02:20.6]} 16. e5 {[%clk 0:02:30]} 16... Ng4
{[%clk 0:02:04.1]} 17. Ne4 {[%clk 0:02:06.6]} 17... Bxe4 {[%clk 0:02:00.1]} 18.
Rxc5 {[%clk 0:02:05.7]} 18... Qd3 {[%clk 0:01:48.8]} 19. Re1 {[%clk 0:01:35.9]}
19... Qxe2 {[%clk 0:01:39.5]} 20. Rxe2 {[%clk 0:01:35.6]} 20... Bd5 {[%clk
0:01:38.3]} 21. Ba3 {[%clk 0:01:29.4]} 21... Nd3 {[%clk 0:01:31.9]} 22. Rc3
{[%clk 0:01:26.6]} 22... b4 {[%clk 0:01:29.3]} 23. Rxd3 {[%clk 0:01:25.5]} 23...
bxa3 {[%clk 0:01:28.5]} 24. Ra2 {[%clk 0:01:24.6]} 24... Bxb3 {[%clk 0:01:10.2]}
25. Rxa3 {[%clk 0:01:22.7]} 25... Bc4 {[%clk 0:01:09.9]} 26. Rd1 {[%clk
0:01:18.8]} 26... Rb2 {[%clk 0:00:55.9]} 27. h3 {[%clk 0:00:50.5]} 27... Nxf2
{[%clk 0:00:50.5]} 28. Rd2 {[%clk 0:00:50.9]} 28... Rb1+ {[%clk 0:00:15.1]} 29.
Kxf2 {[%clk 0:00:50.1]} 29... Bb5 {[%clk 0:00:15.5]} 30. Nd4 {[%clk 0:00:40.8]}
30... h6 {[%clk 0:00:11.6]} 31. Nxb5 {[%clk 0:00:39.4]} 31... axb5 {[%clk
0:00:12.5]} 32. Raa2 {[%clk 0:00:33.7]} 32... Rb8 {[%clk 0:00:11.1]} 33. Rab2
{[%clk 0:00:33.5]} 33... Rc1 {[%clk 0:00:10.4]} 34. Rdc2 {[%clk 0:00:29.4]}
34... Rd1 {[%clk 0:00:07.5]} 35. Rd2 {[%clk 0:00:23.8]} 35... Rc1 {[%clk
0:00:07]} 36. Rdc2 {[%clk 0:00:22.2]} 36... Rd1 {[%clk 0:00:07]} 37. Rb4 {[%clk
0:00:21.7]} 37... Ra1 {[%clk 0:00:04.1]} 38. Rcb2 {[%clk 0:00:21.4]} 38... Ra5
{[%clk 0:00:03.3]} 39. Bf1 {[%clk 0:00:20.2]} 39... g6 {[%clk 0:00:02.5]} 40.
Rxb5 {[%clk 0:00:19.1]} 40... Rbxb5 {[%clk 0:00:02]} 41. Rxb5 {[%clk 0:00:19]}
41... Ra2+ {[%clk 0:00:02]} 42. Kf3 {[%clk 0:00:17.5]} 42... Kg7 {[%clk
0:00:02.4]} 43. Rb7 {[%clk 0:00:15.4]} 43... Ra3+ {[%clk 0:00:02.3]} 44. Kg2
{[%clk 0:00:14.9]} 44... Rc3 {[%clk 0:00:03.2]} 45. Be2 {[%clk 0:00:14.7]} 45...
Re3 {[%clk 0:00:02.3]} 46. Bc4 {[%clk 0:00:14]} 46... Rxe5 {[%clk 0:00:02.1]}
47. Kf2 {[%clk 0:00:14]} 47... h5 {[%clk 0:00:02]} 48. Kf3 {[%clk 0:00:13.6]}
48... Rf5+ {[%clk 0:00:02]} 49. Kg2 {[%clk 0:00:13.7]} 49... Re5 {[%clk
0:00:02.1]} 50. Bb3 {[%clk 0:00:13.7]} 50... Kf6 {[%clk 0:00:02]} 51. Kf3 {[%clk
0:00:13.9]} 51... Rc5 {[%clk 0:00:01.5]} 52. Ba4 {[%clk 0:00:13.9]} 52... Rc3+
{[%clk 0:00:01.5]} 53. Kf2 {[%clk 0:00:13.1]} 53... Ra3 {[%clk 0:00:01.3]} 54.
Be8 {[%clk 0:00:12.9]} 1-0

[Event "*** SCC Grand Prix: Titled Tuesday Blitz"]
[Site "Chess.com"]
[Date "2020.08.11"]
[Round "9"]
[White "DishonorOnYourCow"]
[Black "kngopal"]
[Result "0-1"]
[WhiteElo "2310"]
[BlackElo "2200"]
[TimeControl "180+1"]
[EndTime "11:46:53 PDT"]
[Termination "kngopal won by resignation"]

1. d4 {[%clk 0:03:00.9]} 1... d5 {[%clk 0:02:56.6]} 2. c4 {[%clk 0:02:57.5]}
2... c6 {[%clk 0:02:56.6]} 3. Nf3 {[%clk 0:02:57]} 3... e6 {[%clk 0:02:54.6]} 4.
e3 {[%clk 0:02:56.7]} 4... Nf6 {[%clk 0:02:53.9]} 5. b3 {[%clk 0:02:56.8]} 5...
Be7 {[%clk 0:02:48]} 6. Bd3 {[%clk 0:02:55.7]} 6... O-O {[%clk 0:02:46.7]} 7.
Bb2 {[%clk 0:02:55.7]} 7... dxc4 {[%clk 0:02:42.5]} 8. bxc4 {[%clk 0:02:55.2]}
8... c5 {[%clk 0:02:39.2]} 9. O-O {[%clk 0:02:55.1]} 9... cxd4 {[%clk
0:02:38.9]} 10. exd4 {[%clk 0:02:54.5]} 10... Nc6 {[%clk 0:02:37.7]} 11. Nbd2
{[%clk 0:02:53.8]} 11... b6 {[%clk 0:02:36.8]} 12. Qe2 {[%clk 0:02:52.7]} 12...
Bb7 {[%clk 0:02:36.5]} 13. Rad1 {[%clk 0:02:48.1]} 13... Qc7 {[%clk 0:02:27.2]}
14. h3 {[%clk 0:02:41.5]} 14... Rfe8 {[%clk 0:02:13.4]} 15. Rfe1 {[%clk
0:02:41.3]} 15... Rad8 {[%clk 0:02:09.5]} 16. Ne4 {[%clk 0:02:36.9]} 16... Nb4
{[%clk 0:01:57.8]} 17. Nxf6+ {[%clk 0:02:29.5]} 17... Bxf6 {[%clk 0:01:56.7]}
18. Bb1 {[%clk 0:02:30]} 18... g6 {[%clk 0:01:31]} 19. a3 {[%clk 0:02:26.4]}
19... Nc6 {[%clk 0:01:28.8]} 20. d5 {[%clk 0:02:19.5]} 20... exd5 {[%clk
0:01:21.5]} 21. Qxe8+ {[%clk 0:02:17.4]} 21... Rxe8 {[%clk 0:01:21]} 22. Rxe8+
{[%clk 0:02:18.3]} 22... Kg7 {[%clk 0:01:20.8]} 23. Bxf6+ {[%clk 0:02:09.6]}
23... Kxf6 {[%clk 0:01:19.9]} 24. cxd5 {[%clk 0:02:10.1]} 24... Qd7 {[%clk
0:01:07.8]} 25. Ree1 {[%clk 0:01:50.9]} 25... Na5 {[%clk 0:01:00.8]} 26. Ne5
{[%clk 0:01:48.9]} 26... Qd6 {[%clk 0:00:57.4]} 27. Bc2 {[%clk 0:01:38.4]} 27...
Ba6 {[%clk 0:00:46.9]} 28. Ba4 {[%clk 0:01:35.7]} 28... Nc4 {[%clk 0:00:43.4]}
29. Ng4+ {[%clk 0:01:01.4]} 29... Kg7 {[%clk 0:00:42.8]} 30. Bc6 {[%clk
0:01:00.7]} 30... h5 {[%clk 0:00:37]} 31. Ne3 {[%clk 0:01:00.7]} 31... Ne5
{[%clk 0:00:37]} 32. Ba4 {[%clk 0:00:47.3]} 32... Nd3 {[%clk 0:00:33.1]} 33.
Rxd3 {[%clk 0:00:18.2]} 33... Bxd3 {[%clk 0:00:31.9]} 34. Rd1 {[%clk 0:00:19.1]}
34... Ba6 {[%clk 0:00:27.2]} 35. Bc6 {[%clk 0:00:19.3]} 35... Bc8 {[%clk
0:00:24]} 36. Nc4 {[%clk 0:00:19.1]} 36... Qc5 {[%clk 0:00:21]} 37. Ne5 {[%clk
0:00:18.6]} 37... Qxa3 {[%clk 0:00:20]} 38. d6 {[%clk 0:00:17.3]} 38... Qb3
{[%clk 0:00:18.8]} 39. Rd3 {[%clk 0:00:16]} 39... Qb1+ {[%clk 0:00:17]} 40. Kh2
{[%clk 0:00:15.2]} 40... Qe1 {[%clk 0:00:16.9]} 41. f4 {[%clk 0:00:14.8]} 41...
Qf2 {[%clk 0:00:13.9]} 42. d7 {[%clk 0:00:05.3]} 42... Qxf4+ {[%clk 0:00:11.7]}
43. Kg1 {[%clk 0:00:04.5]} 43... Bxd7 {[%clk 0:00:09.8]} 44. Nxd7 {[%clk
0:00:03.5]} 44... Qc1+ {[%clk 0:00:09.5]} 45. Kh2 {[%clk 0:00:03.9]} 45... Qxc6
{[%clk 0:00:09.4]} 46. Ne5 {[%clk 0:00:02.6]} 46... Qc7 {[%clk 0:00:09.6]} 47.
Re3 {[%clk 0:00:01.9]} 47... f6 {[%clk 0:00:09.4]} 48. g3 {[%clk 0:00:02.6]}
48... fxe5 {[%clk 0:00:09.5]} 49. Rd3 {[%clk 0:00:01.9]} 49... b5 {[%clk
0:00:09.4]} 50. Rf3 {[%clk 0:00:01.4]} 50... b4 {[%clk 0:00:09.5]} 51. Kg1
{[%clk 0:00:02.3]} 51... a5 {[%clk 0:00:08.9]} 52. Rf1 {[%clk 0:00:03.2]} 52...
Qc5+ {[%clk 0:00:08.3]} 53. Kg2 {[%clk 0:00:03.2]} 53... Qc2+ {[%clk 0:00:07.8]}
54. Kf3 {[%clk 0:00:03.1]} 54... Qd3+ {[%clk 0:00:07.3]} 55. Kf2 {[%clk
0:00:03.1]} 55... Qxf1+ {[%clk 0:00:07.5]} 56. Kxf1 {[%clk 0:00:03.2]} 56... b3
{[%clk 0:00:08.1]} 57. Ke2 {[%clk 0:00:04]} 57... b2 {[%clk 0:00:08.7]} 58. Ke3
{[%clk 0:00:04.5]} 58... b1=Q {[%clk 0:00:09.1]} 59. Ke2 {[%clk 0:00:04.2]}
59... Qb3 {[%clk 0:00:09]} 0-1

[Event "*** SCC Grand Prix: Titled Tuesday Blitz"]
[Site "Chess.com"]
[Date "2020.08.11"]
[Round "9"]
[White "hongnhung1234"]
[Black "Oligan22"]
[Result "0-1"]
[WhiteElo "2258"]
[BlackElo "2430"]
[TimeControl "180+1"]
[EndTime "11:46:54 PDT"]
[Termination "Oligan22 won by checkmate"]

1. e4 {[%clk 0:03:00.9]} 1... e5 {[%clk 0:03:00.4]} 2. Nf3 {[%clk 0:02:56]} 2...
d6 {[%clk 0:03:00.7]} 3. d4 {[%clk 0:02:56.2]} 3... exd4 {[%clk 0:03:01.6]} 4.
Nxd4 {[%clk 0:02:57.1]} 4... Nf6 {[%clk 0:03:02.5]} 5. Nc3 {[%clk 0:02:56.7]}
5... Be7 {[%clk 0:03:03.1]} 6. Bd3 {[%clk 0:02:56.8]} 6... O-O {[%clk
0:03:03.5]} 7. O-O {[%clk 0:02:57.1]} 7... Re8 {[%clk 0:03:03.6]} 8. h3 {[%clk
0:02:51.4]} 8... Nbd7 {[%clk 0:03:03.4]} 9. Nf5 {[%clk 0:02:46.1]} 9... Bf8
{[%clk 0:03:02.8]} 10. Bg5 {[%clk 0:02:42]} 10... h6 {[%clk 0:03:02.5]} 11. Bh4
{[%clk 0:02:40.3]} 11... c6 {[%clk 0:03:00.4]} 12. Qf3 {[%clk 0:02:37.8]} 12...
Ne5 {[%clk 0:03:00.3]} 13. Qg3 {[%clk 0:02:37.1]} 13... Ng6 {[%clk 0:03:00.4]}
14. Bxf6 {[%clk 0:02:31.3]} 14... Qxf6 {[%clk 0:02:58.7]} 15. Rae1 {[%clk
0:02:29.1]} 15... d5 {[%clk 0:02:55.8]} 16. Qf3 {[%clk 0:02:10.1]} 16... dxe4
{[%clk 0:02:37.8]} 17. Nxh6+ {[%clk 0:02:03]} 17... Kh7 {[%clk 0:02:32.9]} 18.
Qxf6 {[%clk 0:02:01.2]} 18... gxf6 {[%clk 0:02:33.8]} 19. Ng4 {[%clk 0:01:53.8]}
19... Bxg4 {[%clk 0:02:29.3]} 20. hxg4 {[%clk 0:01:54.7]} 20... exd3 {[%clk
0:02:28.3]} 21. cxd3 {[%clk 0:01:53.4]} 21... Nf4 {[%clk 0:02:24.7]} 22. Ne4
{[%clk 0:01:49.5]} 22... Kg6 {[%clk 0:02:20.7]} 23. Re3 {[%clk 0:01:48.3]} 23...
Rad8 {[%clk 0:02:15.5]} 24. Rf3 {[%clk 0:01:46.2]} 24... Bh6 {[%clk 0:02:11.7]}
25. g3 {[%clk 0:01:42.7]} 25... Ne2+ {[%clk 0:02:11.3]} 26. Kg2 {[%clk
0:01:42.5]} 26... Re6 {[%clk 0:02:04.7]} 27. Nc5 {[%clk 0:01:33.9]} 27... Re7
{[%clk 0:02:00]} 28. Ne4 {[%clk 0:01:29.4]} 28... Bg5 {[%clk 0:01:59.8]} 29. Re1
{[%clk 0:01:24.1]} 29... Nd4 {[%clk 0:01:56.8]} 30. Rf5 {[%clk 0:01:08.7]} 30...
Nxf5 {[%clk 0:01:55.7]} 31. gxf5+ {[%clk 0:01:09.2]} 31... Kg7 {[%clk
0:01:55.4]} 32. f4 {[%clk 0:01:06.9]} 32... Bh6 {[%clk 0:01:50.6]} 33. Re3
{[%clk 0:01:07]} 33... b6 {[%clk 0:01:47.2]} 34. Kf3 {[%clk 0:01:05.2]} 34...
Red7 {[%clk 0:01:46.8]} 35. Ke2 {[%clk 0:01:04.8]} 35... c5 {[%clk 0:01:41.6]}
36. Rf3 {[%clk 0:00:56.7]} 36... c4 {[%clk 0:01:31.9]} 37. dxc4 {[%clk
0:00:55.3]} 37... Re8 {[%clk 0:01:32.2]} 38. Re3 {[%clk 0:00:53.9]} 38... Rd4
{[%clk 0:01:31.6]} 39. Kf3 {[%clk 0:00:49.5]} 39... Rxc4 {[%clk 0:01:31.3]} 40.
g4 {[%clk 0:00:44]} 40... Rc1 {[%clk 0:01:24.2]} 41. g5 {[%clk 0:00:34.7]} 41...
fxg5 {[%clk 0:01:02.2]} 42. fxg5 {[%clk 0:00:25.6]} 42... Bxg5 {[%clk
0:00:59.6]} 43. Nxg5 {[%clk 0:00:25.2]} 43... Rf1+ {[%clk 0:01:00.2]} 44. Ke2
{[%clk 0:00:22.1]} 44... Re1+ {[%clk 0:01:00.4]} 45. Kxe1 {[%clk 0:00:20.5]}
45... Rxe3+ {[%clk 0:01:01.3]} 46. Kd2 {[%clk 0:00:20.9]} 46... Re5 {[%clk
0:00:59.3]} 47. Nf3 {[%clk 0:00:19.7]} 47... Rxf5 {[%clk 0:00:58.5]} 48. Nd4
{[%clk 0:00:20.1]} 48... Rf2+ {[%clk 0:00:56.9]} 49. Kc3 {[%clk 0:00:19.9]}
49... f5 {[%clk 0:00:55.9]} 50. a4 {[%clk 0:00:19.3]} 50... f4 {[%clk
0:00:53.1]} 51. b4 {[%clk 0:00:19.6]} 51... Ra2 {[%clk 0:00:51.6]} 52. Kb3
{[%clk 0:00:18.2]} 52... Rg2 {[%clk 0:00:45.5]} 53. Kc3 {[%clk 0:00:15.9]} 53...
f3 {[%clk 0:00:44.3]} 54. Kc4 {[%clk 0:00:11.4]} 54... f2 {[%clk 0:00:42.5]} 55.
Nf5+ {[%clk 0:00:11.8]} 55... Kf6 {[%clk 0:00:34.7]} 56. Ne3 {[%clk 0:00:12.7]}
56... Rg3 {[%clk 0:00:34.2]} 57. Nf1 {[%clk 0:00:10.4]} 57... Rg1 {[%clk
0:00:34.2]} 58. Nd2 {[%clk 0:00:09.9]} 58... f1=Q+ {[%clk 0:00:34.2]} 59. Nxf1
{[%clk 0:00:10.2]} 59... Rxf1 {[%clk 0:00:35.1]} 60. Kb5 {[%clk 0:00:10.5]}
60... Ra1 {[%clk 0:00:28.4]} 61. a5 {[%clk 0:00:08.9]} 61... bxa5 {[%clk
0:00:26.6]} 62. bxa5 {[%clk 0:00:09.8]} 62... Ke6 {[%clk 0:00:26.7]} 63. Ka6
{[%clk 0:00:06.2]} 63... Kd6 {[%clk 0:00:25.4]} 64. Kb5 {[%clk 0:00:06.6]} 64...
Ra2 {[%clk 0:00:20.9]} 65. Ka6 {[%clk 0:00:05.3]} 65... Kc6 {[%clk 0:00:20.6]}
66. Kxa7 {[%clk 0:00:05.7]} 66... Rxa5+ {[%clk 0:00:20]} 67. Kb8 {[%clk
0:00:06.6]} 67... Ra4 {[%clk 0:00:18.5]} 68. Kc8 {[%clk 0:00:06.9]} 68... Ra8#
{[%clk 0:00:18.5]} 0-1